fUST/lending_fUST_20250226
["ID","MTS","AMOUNT","RATE_DAILY","PERIOD"]
[354517504,1740549036811,-206.629281,0.00038356,14]
[354517505,1740549036820,-503.34433438,0.00038356,2]
[354517506,1740549036829,-502.90623338,0.00038356,2]
[354517507,1740549036839,-500.0,0.00038356,2]
[354517508,1740549036848,-500.0,0.00038356,2]
[354517509,1740549036858,-1405.06,0.00038356,2]
[354517510,1740549036868,-505.88464529,0.00038356,2]
[354517511,1740549036877,-151.0,0.00038356,14]
[354517512,1740549036886,-505.84932179,0.00038356,2]
[354517513,1740549036895,-151.0,0.00038356,14]
[354517514,1740549036904,-151.653595,0.00038356,14]
[354517515,1740549036913,-500.0,0.00038356,2]
[354517516,1740549036922,-500.0,0.00038356,2]
[354517517,1740549036931,-503.80893015,0.00038356,2]
[354517518,1740549036940,-9184.02,0.00038356,2]
[354517519,1740549036950,-500.0,0.00038356,2]
[354517520,1740549036959,-505.25237129,0.00038356,2]
[354517521,1740549036969,-504.67414588,0.00038356,2]
[354517522,1740549036978,-500.0,0.00038356,2]
[354517523,1740549036988,-506.71728477,0.00038356,2]
[354517524,1740549036997,-502.54893236,0.00038356,2]
[354517525,1740549037007,-500.0,0.00038356,2]
[354517526,1740549037016,-502.91285614,0.00038356,2]
[354517527,1740549037026,-502.70753774,0.00038356,2]
[354517528,1740549037035,-505.5425372,0.00038356,2]
[354517529,1740549037044,-500.0,0.00038356,2]
[354517530,1740549037054,-517.61,0.00038356,2]
[354517531,1740549037064,-502.14562629,0.00038356,2]
[354517532,1740549037073,-500.0,0.00038356,2]
[354517533,1740549037083,-500.0,0.00038356,2]
[354517534,1740549037092,-511.15760459,0.00038356,2]
[354517535,1740549037101,-500.0,0.00038356,2]
[354517536,1740549037113,-500.0,0.00038356,2]
[354517537,1740549037123,-500.0,0.00038356,2]
[354517538,1740549037132,-506.15363757,0.00038356,2]
[354517539,1740549037142,-500.0,0.00038356,2]
[354517540,1740549037151,-500.0,0.00038356,2]
[354517541,1740549037161,-500.0,0.00038356,2]
[354517542,1740549037170,-500.0,0.00038356,2]
[354517543,1740549037179,-502.6539475,0.00038356,2]
[354517544,1740549037188,-500.0,0.00038356,2]
[354517545,1740549037198,-504.61156934,0.00038356,2]
[354517546,1740549037208,-500.0,0.00038356,2]
[354517547,1740549037217,-500.0,0.00038356,2]
[354517548,1740549037226,-501.94477126,0.00038356,2]
[354517549,1740549037236,-505.98349439,0.00038356,2]
[354517550,1740549037245,-500.0,0.00038356,2]
[354517551,1740549037254,-500.0,0.00038356,2]
[354517552,1740549037264,-500.0,0.00038356,2]
[354517553,1740549037273,-404.30737073,0.00038356,2]
[354517554,1740549037283,-502.73606524,0.00038356,2]
[354517555,1740549037293,-503.89731709,0.00038356,2]
[354517556,1740549037302,-503.77374354,0.00038356,2]
[354517557,1740549037311,-500.0,0.00038356,2]
[354517558,1740549037320,-504.27897101,0.00038356,2]
[354517559,1740549037330,-505.8924663,0.00038356,2]
[354517560,1740549037339,-502.02429456,0.00038356,2]
[354517561,1740549037349,-512.15,0.00038356,2]
[354517562,1740549037359,-500.0,0.00038356,2]
[354517563,1740549037369,-502.08309488,0.00038356,2]
[354517564,1740549037378,-500.0,0.00038356,2]
[354517565,1740549037388,-500.0,0.00038356,2]
[354517566,1740549037397,-500.0,0.00038356,2]
[354517567,1740549037407,-151.85548651,0.00038356,2]
[354517568,1740549037416,-500.0,0.00038356,2]
[354517569,1740549037425,-500.0,0.00038356,2]
[354517570,1740549037435,-500.0,0.00038356,2]
[354517571,1740549037444,-504.15303726,0.00038356,2]
[354517572,1740549037453,-504.12430451,0.00038356,2]
[354517573,1740549037462,-503.98355006,0.00038356,2]
[354517574,1740549037472,-500.0,0.00038356,2]
[354517575,1740549037482,-500.0,0.00038356,2]
[354517576,1740549037491,-500.0,0.00038356,2]
[354517577,1740549037500,-500.0,0.00038356,2]
[354517578,1740549037512,-500.0,0.00038356,2]
[354517579,1740549037524,-505.62615419,0.00038356,2]
[354517580,1740549037535,-500.0,0.00038356,2]
[354517581,1740549037547,-502.27513603,0.00038356,2]
[354517582,1740549037559,-500.0,0.00038356,2]
[354517583,1740549037571,-503.8143556,0.00038356,2]
[354517584,1740549037583,-500.0,0.00038356,2]
[354517585,1740549037594,-502.78221384,0.00038356,2]
[354517586,1740549037604,-507.93800319,0.00038356,2]
[354517587,1740549037615,-500.0,0.00038356,2]
[354517588,1740549037628,-500.0,0.00038356,2]
[354517589,1740549037639,-500.0,0.00038356,2]
[354517590,1740549037651,-500.0,0.00038356,2]
[354517591,1740549037662,-500.0,0.00038356,2]
[354517592,1740549037674,-570.12996265,0.00038356,2]
[354517593,1740549037685,-500.0,0.00038356,2]
[354517594,1740549037697,-500.0,0.00038356,2]
[354517595,1740549037708,-1696.859142,0.00038356,14]
[354517596,1740549037719,-1696.859142,0.00038356,14]
[354517597,1740549037730,-500.0,0.00038356,2]
[354517598,1740549037741,-1696.859142,0.00038356,14]
[354517599,1740549037752,-540.44933839,0.00038356,2]
[354517600,1740549037764,-1696.859142,0.00038356,14]
[354517601,1740549037776,-1696.859142,0.00038356,14]
[354517602,1740549037788,-1696.859142,0.00038356,14]
[354517603,1740549037799,-1696.859142,0.00038356,14]
[354517604,1740549037811,-1696.859142,0.00038356,14]
[354517605,1740549037824,-1696.859142,0.00038356,14]
[354517606,1740549037835,-1696.859142,0.00038356,14]
[354517607,1740549037846,-1696.859142,0.00038356,14]
[354517608,1740549037856,-1696.859142,0.00038356,14]
[354517610,1740549037867,-1696.859142,0.00038356,14]
[354517612,1740549037879,-1696.859142,0.00038356,14]
[354517614,1740549037890,-1696.859142,0.00038356,14]
[354517616,1740549037902,-1696.859142,0.00038356,14]
[354517617,1740549037912,-1696.859142,0.00038356,14]
[354517618,1740549037923,-1696.859142,0.00038356,14]
[354517619,1740549037934,-1696.859142,0.00038356,14]
[354517620,1740549037944,-1696.85914135,0.00038356,14]
[354517621,1740549037954,-510.02236181,0.00038356,2]
[354517622,1740549037963,-500.0,0.00038356,2]
[354517623,1740549037974,-500.0,0.00038356,2]
[354517624,1740549037984,-506.56140813,0.00038356,2]
[354517626,1740549037994,-506.14578192,0.00038356,2]
[354517628,1740549038006,-500.0,0.00038356,2]
[354517629,1740549038016,-500.0,0.00038356,2]
[354517631,1740549038028,-507.48140636,0.00038356,2]
[354517633,1740549038039,-511.07528168,0.00038356,2]
[354517635,1740549038050,-502.947694,0.00038356,2]
[354517636,1740549038061,-500.0,0.00038356,2]
[354517638,1740549038072,-500.0,0.00038356,2]
[354517641,1740549038084,-500.0,0.00038356,2]
[354517643,1740549038095,-500.0,0.00038356,2]
[354517645,1740549038109,-501.80573602,0.00038356,2]
[354517647,1740549038122,-500.0,0.00038356,2]
[354517650,1740549038133,-500.0,0.00038356,2]
[354517652,1740549038144,-500.0,0.00038356,2]
[354517654,1740549038156,-300.0,0.00038356,120]
[354517655,1740549038166,-505.02453337,0.00038356,2]
[354517656,1740549038176,-500.0,0.00038356,2]
[354517658,1740549038185,-500.0,0.00038356,2]
[354517660,1740549038195,-501.55792233,0.00038356,2]
[354517662,1740549038205,-500.0,0.00038356,2]
[354517664,1740549038215,-500.0,0.00038356,2]
[354517667,1740549038225,-500.0,0.00038356,2]
[354517669,1740549038237,-500.0,0.00038356,2]
[354517671,1740549038248,-500.0,0.00038356,2]
[354517673,1740549038259,-503.33812085,0.00038356,2]
[354517675,1740549038270,-500.0,0.00038356,2]
[354517678,1740549038281,-500.0,0.00038356,2]
[354517680,1740549038293,-521.97556561,0.00038356,2]
[354517682,1740549038303,-507.92689481,0.00038356,2]
[354517686,1740549038312,-500.0,0.00038356,2]
[354517688,1740549038321,-500.0,0.00038356,2]
[354517691,1740549038332,-504.72560099,0.00038356,2]
[354517693,1740549038342,-500.0,0.00038356,50]
[354517695,1740549038352,-500.0,0.00038356,2]
[354517697,1740549038363,-500.0,0.00038356,2]
[354517699,1740549038378,-500.0,0.00038356,2]
[354517700,1740549038388,-500.0,0.00038356,2]
[354517701,1740549038398,-500.0,0.00038356,2]
[354517702,1740549038408,-500.0,0.00038356,2]
[354517703,1740549038418,-500.0,0.00038356,2]
[354517704,1740549038428,-500.0,0.00038356,2]
[354517705,1740549038437,-500.0,0.00038356,2]
[354517706,1740549038448,-500.0,0.00038356,2]
[354517707,1740549038458,-500.0,0.00038356,2]
[354517708,1740549038469,-500.0,0.00038356,2]
[354517709,1740549038479,-501.27922376,0.00038356,2]
[354517710,1740549038490,-500.0,0.00038356,2]
[354517711,1740549038508,-500.0,0.00038356,2]
[354517714,1740549038521,-507.53118664,0.00038356,2]
[354517716,1740549038533,-500.0,0.00038356,2]
[354517718,1740549038544,-500.0,0.00038356,2]
[354517720,1740549038555,-500.0,0.00038356,2]
[354517722,1740549038566,-3708.84,0.00038356,2]
[354517724,1740549038578,-500.0,0.00038356,2]
[354517725,1740549038589,-500.0,0.00038356,2]
[354517726,1740549038601,-500.0,0.00038356,2]
[354517727,1740549038612,-500.0,0.00038356,2]
[354517728,1740549038623,-501.67613118,0.00038356,2]
[354517729,1740549038634,-1000.0,0.00038356,30]
[354517730,1740549038647,-5129.44,0.00038356,2]
[354517731,1740549038658,-506.981225,0.00038356,2]
[354517732,1740549038669,-505.97237244,0.00038356,2]
[354517733,1740549038680,-151.0,0.00038356,14]
[354517734,1740549038692,-151.0,0.00038356,14]
[354517735,1740549038703,-510.11808852,0.00038356,2]
[354517736,1740549038715,-151.0,0.00038356,14]
[354517737,1740549038726,-151.0,0.00038356,14]
[354517738,1740549038738,-151.0,0.00038356,14]
[354517739,1740549038748,-500.0,0.00038356,2]
[354517740,1740549038759,-151.0,0.00038356,14]
[354517741,1740549038771,-151.0,0.00038356,14]
[354517742,1740549038782,-281.976238,0.00038356,14]
[354517743,1740549038793,-500.0,0.00038356,2]
[354517744,1740549038804,-155.464363,0.00038356,14]
[354517745,1740549038815,-500.0,0.00038356,2]
[354517746,1740549038826,-151.0,0.00038356,14]
[354517747,1740549038836,-155.464363,0.00038356,14]
[354517748,1740549038847,-151.0,0.00038356,14]
[354517749,1740549038858,-155.464363,0.00038356,14]
[354517750,1740549038868,-153.299938,0.00038356,14]
[354517751,1740549038879,-155.464363,0.00038356,14]
[354517752,1740549038893,-500.0,0.00038356,2]
[354517753,1740549038903,-3800.0,0.00038356,120]
[354517754,1740549038916,-155.464363,0.00038356,14]
[354517755,1740549038929,-500.0,0.00038356,2]
[354517756,1740549038940,-155.464363,0.00038356,14]
[354517757,1740549038950,-155.464363,0.00038356,14]
[354517758,1740549038960,-155.464363,0.00038356,14]
[354517759,1740549038970,-505.52236714,0.00038356,2]
[354517760,1740549038981,-155.464363,0.00038356,14]
[354517761,1740549038992,-501.63761694,0.00038356,2]
[354517762,1740549039002,-606.54,0.00038356,2]
[354517763,1740549039012,-500.0,0.00038356,2]
[354517764,1740549039023,-155.464363,0.00038356,14]
[354517765,1740549039033,-155.464363,0.00038356,14]
[354517766,1740549039043,-500.0,0.00038356,2]
[354517767,1740549039054,-155.464363,0.00038356,14]
[354517768,1740549039064,-151.0,0.00038356,14]
[354517769,1740549039074,-151.0,0.00038356,14]
[354517770,1740549039085,-155.464363,0.00038356,14]
[354517771,1740549039095,-151.0,0.00038356,14]
[354517772,1740549039106,-155.464363,0.00038356,14]
[354517773,1740549039119,-209.428452,0.00038356,14]
[354517774,1740549039131,-155.464363,0.00038356,14]
[354517775,1740549039143,-155.464363,0.00038356,14]
[354517776,1740549039154,-155.464363,0.00038356,14]
[354517777,1740549039165,-500.0,0.00038356,2]
[354517778,1740549039175,-155.464372,0.00038356,14]
[354517779,1740549039186,-502.86668811,0.00038356,2]
[354517780,1740549039197,-500.0,0.00038356,2]
[354517781,1740549039208,-506.8891854,0.00038356,2]
[354517782,1740549039218,-500.0,0.00038356,2]
[354517783,1740549039228,-504.3420254,0.00038356,2]
[354517784,1740549039238,-606.55671246,0.00038356,2]
[354517785,1740549039248,-546.82,0.00038356,2]
[354517786,1740549039258,-500.0,0.00038356,2]
[354517787,1740549039268,-503.8304537,0.00038356,2]
[354517788,1740549039280,-500.0,0.00038356,2]
[354517789,1740549039290,-151.0,0.00038356,14]
[354517790,1740549039299,-151.0,0.00038356,14]
[354517791,1740549039310,-500.99962877,0.00038356,2]
[354517792,1740549039320,-151.0,0.00038356,14]
[354517793,1740549039331,-151.0,0.00038356,14]
[354517794,1740549039341,-151.0,0.00038356,14]
[354517795,1740549039351,-500.0,0.00038356,2]
[354517796,1740549039362,-151.0,0.00038356,14]
[354517797,1740549039372,-151.0,0.00038356,14]
[354517798,1740549039383,-151.0,0.00038356,14]
[354517799,1740549039394,-218.212243,0.00038356,14]
[354517800,1740549039405,-504.20589903,0.00038356,2]
[354517801,1740549039416,-349.120408,0.00038356,14]
[354517802,1740549039426,-349.120408,0.00038356,14]
[354517803,1740549039436,-502.73977516,0.00038356,2]
[354517804,1740549039447,-349.120408,0.00038356,14]
[354517805,1740549039457,-500.0,0.00038356,2]
[354517806,1740549039654,-349.120408,0.00038356,14]
[354517807,1740549039663,-349.120408,0.00038356,14]
[354517808,1740549039673,-349.120408,0.00038356,14]
[354517809,1740549039682,-349.120408,0.00038356,14]
[354517810,1740549039691,-349.120408,0.00038356,14]
[354517811,1740549039700,-349.120408,0.00038356,14]
[354517812,1740549039709,-151.0,0.00038356,14]
[354517813,1740549039719,-152.24098,0.00038356,14]
[354517814,1740549039728,-349.120408,0.00038356,14]
[354517815,1740549039738,-349.120408,0.00038356,14]
[354517816,1740549039747,-505.75068158,0.00038356,2]
[354517817,1740549039756,-349.120408,0.00038356,14]
[354517818,1740549039765,-349.120408,0.00038356,14]
[354517819,1740549039774,-192.15038798,0.00038356,2]
[354517820,1740549039784,-349.120408,0.00038356,14]
[354517821,1740549039793,-500.0,0.00038356,2]
[354517822,1740549039802,-349.120408,0.00038356,14]
[354517823,1740549039811,-349.120408,0.00038356,14]
[354517824,1740549039821,-349.120408,0.00038356,14]
[354517825,1740549039830,-349.12040294,0.00038356,14]
[354517826,1740549039839,-151.0,0.00038356,14]
[354517827,1740549039849,-249.256261,0.00038356,14]
[354517828,1740549039858,-500.0,0.00038356,2]
[354517829,1740549039867,-500.0,0.00038356,2]
[354517830,1740549039876,-500.0,0.00038356,2]
[354517831,1740549039886,-500.0,0.00038356,2]
[354517832,1740549039895,-500.0,0.00038356,2]
[354517833,1740549039905,-507.02329536,0.00038356,2]
[354517834,1740549039914,-500.0,0.00038356,2]
[354517835,1740549039927,-500.0,0.00038356,2]
[354517836,1740549039936,-500.0,0.00038356,2]
[354517837,1740549039945,-503.72007451,0.00038356,2]
[354517838,1740549039955,-500.0,0.00038356,2]
[354517839,1740549039964,-500.0,0.00038356,2]
[354517840,1740549039973,-509.44778026,0.00038356,2]
[354517841,1740549039983,-504.54884011,0.00038356,2]
[354517842,1740549039992,-504.40789509,0.00038356,2]
[354517843,1740549040001,-500.0,0.00038356,2]
[354517844,1740549040011,-3160.48,0.00038356,2]
[354517845,1740549040020,-500.0,0.00038356,2]
[354517846,1740549040029,-184.09517712,0.0003853,2]
[354517847,1740549040039,-20035.7616136,0.0003861,3]
[354517848,1740549040048,-394.78996598,0.00038619,15]
[354517850,1740549040057,-151.0,0.0003862,14]
[354517852,1740549040067,-151.0,0.0003862,14]
[354517854,1740549040076,-151.0,0.0003862,14]
[354517856,1740549040085,-413.193218,0.0003862,14]
[354517858,1740549040094,-413.193218,0.0003862,14]
[354517860,1740549040104,-151.0,0.0003862,14]
[354517862,1740549040116,-151.0,0.0003862,14]
[354517864,1740549040127,-60107.2848408,0.0003862,3]
[354517866,1740549040136,-217.67377512,0.00038629,2]
[354517868,1740549040146,-151.0,0.0003863,14]
[354517870,1740549040156,-151.0,0.0003863,14]
[354517873,1740549040165,-151.36,0.0003863,2]
[354517875,1740549040175,-500.0,0.0003863,2]
[354517876,1740549040184,-500.0,0.0003863,2]
[354517878,1740549040194,-500.0,0.0003863,2]
[354517880,1740549040204,-500.0,0.0003863,2]
[354517882,1740549040214,-500.0,0.0003863,2]
[354517884,1740549040223,-500.0,0.0003863,2]
[354517886,1740549040232,-565.68553695,0.0003863,2]
[354517889,1740549040242,-500.0,0.0003863,2]
[354517890,1740549040251,-500.0,0.0003863,2]
[354517892,1740549040261,-500.0,0.0003863,2]
[354517894,1740549040270,-151.0,0.0003863,14]
[354517896,1740549040280,-151.0,0.0003863,14]
[354517898,1740549040290,-500.0,0.0003863,2]
[354517900,1740549040299,-500.0,0.0003863,2]
[354517902,1740549040308,-413.193218,0.0003863,14]
[354517904,1740549040318,-413.193218,0.0003863,14]
[354517906,1740549040327,-413.193221,0.0003863,14]
[354517908,1740549040337,-500.0,0.0003863,2]
[354517910,1740549040346,-500.0,0.0003863,2]
[354517912,1740549040356,-409.73309392,0.0003863,2]
[354517914,1740549040365,-500.0,0.0003863,2]
[354517916,1740549040375,-500.0,0.0003863,2]
[354517919,1740549040386,-151.0,0.0003863,14]
[354517921,1740549040395,-500.0,0.0003863,2]
[354517923,1740549040407,-649.75,0.0003863,2]
[354517925,1740549040416,-500.0,0.0003863,2]
[354517927,1740549040426,-500.0,0.0003863,2]
[354517929,1740549040435,-463.75361296,0.0003863,2]
[354517931,1740549040444,-500.0,0.0003863,2]
[354517933,1740549040454,-500.0,0.0003863,2]
[354517935,1740549040463,-500.0,0.0003863,2]
[354517936,1740549040472,-503.22155311,0.0003863,2]
[354517939,1740549040482,-500.0,0.0003863,2]
[354517941,1740549040492,-502.37022927,0.0003863,2]
[354517943,1740549040502,-500.0,0.0003863,2]
[354517945,1740549040511,-509.9969829,0.0003863,2]
[354517947,1740549040521,-500.0,0.0003863,2]
[354517949,1740549040531,-500.0,0.0003863,2]
[354517951,1740549040540,-500.0,0.0003863,2]
[354517953,1740549040549,-503.63773967,0.0003863,2]
[354517955,1740549040559,-533.08889368,0.0003863,2]
[354517957,1740549040568,-639.5,0.0003863,2]
[354517959,1740549040577,-500.0,0.0003863,2]
[354517961,1740549040586,-500.0,0.0003863,2]
[354517963,1740549040595,-500.0,0.0003863,2]
[354517965,1740549040604,-500.0,0.0003863,2]
[354517967,1740549040613,-500.0,0.0003863,2]
[354517969,1740549040623,-500.0,0.0003863,2]
[354517970,1740549040632,-1948.07,0.0003863,2]
[354517971,1740549040641,-506.11416344,0.0003863,2]
[354517972,1740549040650,-500.0,0.0003863,2]
[354517973,1740549040660,-500.0,0.0003863,2]
[354517974,1740549040669,-500.0,0.0003863,2]
[354517975,1740549040678,-500.0,0.0003863,2]
[354517976,1740549040687,-352.6059685,0.0003863,2]
[354517977,1740549040696,-500.0,0.0003863,2]
[354517978,1740549040706,-504.73750021,0.0003863,2]
[354517979,1740549040715,-500.0,0.0003863,2]
[354517980,1740549040724,-500.0,0.0003863,2]
[354517981,1740549040733,-503.89930332,0.0003863,2]
[354517982,1740549040743,-503.60214728,0.0003863,2]
[354517983,1740549040752,-500.0,0.0003863,2]
[354517984,1740549040762,-500.0,0.0003863,2]
[354517985,1740549040771,-500.0,0.0003863,2]
[354517986,1740549040780,-508.04296415,0.0003863,2]
[354517987,1740549040790,-500.0,0.0003863,2]
[354517988,1740549040799,-500.0,0.0003863,2]
[354517989,1740549040808,-567.85033298,0.0003863,2]
[354517990,1740549040818,-500.0,0.0003863,2]
[354517991,1740549040827,-500.0,0.0003863,2]
[354517992,1740549040836,-1000.0,0.0003863,2]
[354517993,1740549040846,-500.0,0.0003863,2]
[354517994,1740549040855,-500.0,0.0003863,2]
[354517995,1740549040864,-500.0,0.0003863,2]
[354517996,1740549040874,-510.28281057,0.0003863,2]
[354517997,1740549040883,-502.99098845,0.0003863,2]
[354517998,1740549040893,-500.0,0.0003863,2]
[354517999,1740549040902,-500.0,0.0003863,2]
[354518000,1740549040911,-313.13464628,0.0003863,2]
[354518001,1740549040921,-500.0,0.0003863,2]
[354518002,1740549040932,-503.29351089,0.0003863,2]
[354518003,1740549040941,-1000.0,0.0003863,2]
[354518004,1740549040949,-500.0,0.0003863,2]
[354518005,1740549040959,-502.0662777,0.0003863,2]
[354518006,1740549040968,-500.0,0.0003863,2]
[354518007,1740549040977,-503.44787902,0.0003863,2]
[354518008,1740549040987,-500.0,0.0003863,2]
[354518009,1740549040995,-502.32853479,0.0003863,2]
[354518010,1740549041005,-246.04,0.0003863,2]
[354518011,1740549041015,-500.0,0.0003863,2]
[354518012,1740549041025,-500.0,0.0003863,2]
[354518013,1740549041035,-500.0,0.0003863,2]
[354518014,1740549041046,-500.0,0.0003863,2]
[354518015,1740549041057,-500.0,0.0003863,2]
[354518016,1740549041069,-500.0,0.0003863,2]
[354518017,1740549041079,-500.0,0.0003863,2]
[354518018,1740549041089,-509.69449276,0.0003863,2]
[354518019,1740549041100,-508.80158283,0.0003863,2]
[354518020,1740549041114,-500.0,0.0003863,2]
[354518021,1740549041123,-421.76857134,0.0003863,2]
[354518022,1740549041133,-500.0,0.0003863,2]
[354518023,1740549041142,-500.0,0.0003863,2]
[354518024,1740549041152,-500.0,0.0003863,2]
[354518025,1740549041161,-500.0,0.0003863,2]
[354518026,1740549041170,-500.0,0.0003863,2]
[354518027,1740549041180,-500.0,0.0003863,2]
[354518028,1740549041190,-500.0,0.0003863,2]
[354518029,1740549041200,-328.20821012,0.0003863,2]
[354518030,1740549041209,-472.45475676,0.0003863,2]
[354518031,1740549041218,-502.42748009,0.0003863,2]
[354518032,1740549041227,-500.0,0.0003863,2]
[354518033,1740549041236,-500.0,0.0003863,2]
[354518034,1740549041246,-500.0,0.0003863,2]
[354518035,1740549041255,-500.0,0.0003863,2]
[354518036,1740549041265,-347.63890694,0.0003863,2]
[354518037,1740549041275,-579.98,0.0003863,2]
[354518038,1740549041284,-500.0,0.0003863,2]
[354518039,1740549041293,-500.0,0.0003863,2]
[354518040,1740549041303,-500.0,0.0003863,2]
[354518041,1740549041312,-500.0,0.0003863,2]
[354518042,1740549041322,-500.0,0.0003863,2]
[354518043,1740549041331,-504.37492336,0.0003863,2]
[354518044,1740549041341,-500.0,0.0003863,2]
[354518045,1740549041350,-504.54992375,0.0003863,2]
[354518046,1740549041359,-500.0,0.0003863,2]
[354518047,1740549041369,-500.0,0.0003863,2]
[354518048,1740549041378,-1405.06,0.0003863,2]
[354518049,1740549041387,-500.0,0.0003863,2]
[354518050,1740549041397,-500.0,0.0003863,2]
[354518051,1740549041407,-9184.02,0.0003863,2]
[354518052,1740549041417,-500.0,0.0003863,2]
[354518053,1740549041431,-500.0,0.0003863,2]
[354518054,1740549041440,-500.0,0.0003863,2]
[354518055,1740549041449,-500.0,0.0003863,2]
[354518056,1740549041458,-500.0,0.0003863,2]
[354518057,1740549041468,-500.0,0.0003863,2]
[354518058,1740549041477,-500.0,0.0003863,2]
[354518059,1740549041487,-500.0,0.0003863,2]
[354518060,1740549041497,-500.0,0.0003863,2]
[354518061,1740549041507,-505.43795202,0.0003863,2]
[354518062,1740549041517,-500.0,0.0003863,2]
[354518063,1740549041527,-527.21120701,0.0003863,2]
[354518064,1740549041536,-500.0,0.0003863,2]
[354518065,1740549041546,-500.0,0.0003863,2]
[354518066,1740549041555,-500.0,0.0003863,2]
[354518067,1740549041565,-500.0,0.0003863,2]
[354518068,1740549041575,-506.98999627,0.0003863,2]
[354518069,1740549041584,-500.0,0.0003863,2]
[354518070,1740549041594,-500.0,0.0003863,2]
[354518071,1740549041604,-500.0,0.0003863,2]
[354518072,1740549041613,-500.0,0.0003863,2]
[354518073,1740549041623,-374.53,0.0003863,2]
[354518074,1740549041632,-500.0,0.0003863,2]
[354518075,1740549041641,-505.79149206,0.0003863,2]
[354518076,1740549041651,-500.0,0.0003863,2]
[354518077,1740549041660,-505.14376566,0.0003863,2]
[354518078,1740549041669,-503.76533332,0.0003863,2]
[354518079,1740549041678,-500.0,0.0003863,2]
[354518080,1740549041687,-500.0,0.0003863,2]
[354518081,1740549041696,-500.0,0.0003863,2]
[354518082,1740549041705,-500.0,0.0003863,2]
[354518083,1740549041715,-502.59285531,0.0003863,2]
[354518084,1740549041724,-500.0,0.0003863,2]
[354518085,1740549041733,-500.0,0.0003863,2]
[354518086,1740549041743,-500.0,0.0003863,2]
[354518087,1740549041752,-510.26175193,0.0003863,2]
[354518088,1740549041762,-500.0,0.0003863,2]
[354518089,1740549041771,-500.0,0.0003863,2]
[354518090,1740549041781,-500.0,0.0003863,2]
[354518091,1740549041791,-500.0,0.0003863,2]
[354518092,1740549041800,-500.0,0.0003863,2]
[354518093,1740549041809,-500.0,0.0003863,2]
[354518094,1740549041819,-502.34783474,0.0003863,2]
[354518095,1740549041828,-500.0,0.0003863,2]
[354518096,1740549041838,-505.26053619,0.0003863,2]
[354518097,1740549041847,-500.0,0.0003863,2]
[354518098,1740549041856,-500.0,0.0003863,2]
[354518099,1740549041866,-216.47844601,0.0003863,2]
[354518100,1740549041875,-500.0,0.0003863,2]
[354518101,1740549041884,-500.0,0.0003863,2]
[354518102,1740549041894,-500.0,0.0003863,2]
[354518103,1740549041904,-500.0,0.0003863,2]
[354518104,1740549041913,-500.0,0.0003863,2]
[354518105,1740549041922,-505.6807251,0.0003863,2]
[354518106,1740549041932,-500.0,0.0003863,2]
[354518107,1740549041942,-500.0,0.0003863,2]
[354518108,1740549041951,-500.0,0.0003863,2]
[354518109,1740549041960,-500.0,0.0003863,2]
[354518110,1740549041969,-500.0,0.0003863,2]
[354518111,1740549041979,-500.0,0.0003863,2]
[354518112,1740549041990,-500.0,0.0003863,2]
[354518113,1740549041998,-509.30474972,0.0003863,2]
[354518114,1740549042008,-500.0,0.0003863,2]